bitfinex-derivatives/quotes_BTCF0:USTF0_20250121
["timestamp","ask_amount","ask_price","bid_price","bid_amount"]
[1737492333110,0.549433,106020.0,106010.0,1.68875179]
[1737492334217,0.549433,106020.0,106010.0,0.18875179]
[1737492335505,0.67758929,106020.0,106010.0,0.00010279]
[1737492335818,0.188651,106010.0,106000.0,0.32469162]
[1737492336013,0.67760729,106010.0,106000.0,0.32469162]
[1737492336213,0.67760729,106010.0,106000.0,0.03729162]
[1737492336620,0.67769082,106010.0,106000.0,0.03729162]
[1737492336816,0.67769082,106010.0,106000.0,0.00014129]
[1737492337213,0.54953453,106010.0,106000.0,0.00014129]
[1737492337415,0.67769082,106010.0,106000.0,0.00014129]
[1737492337908,0.54953453,106010.0,106000.0,0.00014129]
[1737492338114,0.18873453,106010.0,106000.0,0.18881029]
[1737492338313,8.353e-05,106010.0,106000.0,0.18881029]
[1737492338514,0.18873453,106010.0,106000.0,0.18881029]
[1737492339518,8.353e-05,106010.0,106000.0,0.31696658]
[1737492339818,8.353e-05,106010.0,106000.0,0.53420175]
[1737492340223,8.353e-05,106010.0,106000.0,0.40604546]
[1737492340818,8.353e-05,106010.0,106000.0,1.90604546]
[1737492341020,8.353e-05,106010.0,106000.0,1.81171029]
[1737492341519,8.353e-05,106010.0,106000.0,2.39500175]
[1737492341721,0.13785895,106030.0,106000.0,2.482466]
[1737492341926,0.13785895,106030.0,106020.0,1.03838929]
[1737492342122,0.16526119,106040.0,106030.0,0.188615]
[1737492342425,0.55078388,106060.0,106050.0,0.18858]
[1737492342819,0.55083861,106060.0,106050.0,0.18858]
[1737492343815,0.00146961,106060.0,106050.0,0.31673629]
[1737492344024,0.00146961,106060.0,106050.0,0.77182698]
[1737492344333,0.00146961,106060.0,106050.0,0.83492698]
[1737492344627,0.00014129,106070.0,106060.0,0.188562]
[1737492344823,0.00014129,106070.0,106060.0,0.80191829]
[1737492345428,0.00014129,106070.0,106060.0,0.89620898]
[1737492346417,0.18868529,106070.0,106060.0,2.26805269]
[1737492346618,0.54948529,106070.0,106060.0,0.40725269]
[1737492346822,0.54948529,106070.0,106060.0,0.312962]
[1737492347620,0.54948529,106070.0,106060.0,0.1244]
[1737492347824,0.48909758,106070.0,106040.0,0.00014129]
[1737492348128,0.91018,106050.0,106040.0,0.00014129]
[1737492348833,1.03833629,106050.0,106040.0,0.00014129]
[1737492349233,0.91018,106050.0,106040.0,0.00014129]
[1737492350532,1.03833629,106050.0,106040.0,0.00014129]
[1737492352231,0.91018,106050.0,106040.0,0.00014129]
[1737492353033,0.188615,106030.0,106020.0,0.00011509]
[1737492353331,0.910215,106030.0,106020.0,0.00011509]
[1737492355424,1.03837129,106030.0,106020.0,0.00011509]
[1737492356435,0.910215,106030.0,106020.0,0.00011509]
[1737492356740,0.3608,106030.0,106020.0,0.31690438]
[1737492357034,0.3608,106030.0,106020.0,0.38360438]
[1737492357535,0.54954829,106040.0,106020.0,0.47792175]
[1737492357738,0.54954829,106040.0,106030.0,0.188615]
[1737492358332,0.54954829,106040.0,106020.0,0.38359738]
[1737492358633,0.3608,106030.0,106020.0,0.38359738]
[1737492358839,0.3608,106030.0,106020.0,0.47791475]
[1737492359133,0.54954829,106040.0,106020.0,0.47791475]
[1737492359134,0.00014129,106040.0,106030.0,0.188615]
[1737492359342,0.00014129,106040.0,106030.0,0.67757129]
[1737492359734,0.00014129,106040.0,106030.0,0.77188422]
[1737492360536,0.0654,106070.0,106060.0,0.188562]
[1737492360741,0.1899498,106080.0,106070.0,0.188544]
[1737492360930,0.1899498,106080.0,106070.0,0.31670029]
[1737492361236,0.1899498,106080.0,106070.0,0.188544]
[1737492361939,0.1899498,106080.0,106070.0,1.688544]
[1737492362135,0.0014148,106080.0,106070.0,1.81670029]
[1737492362337,0.0014148,106080.0,106070.0,2.27177321]
[1737492362639,0.00014129,106090.0,106080.0,0.188527]
[1737492362838,0.00014129,106090.0,106080.0,0.67748329]
[1737492363239,0.00014129,106090.0,106080.0,0.188527]
[1737492363439,0.00014129,106090.0,106070.0,1.98943629]
[1737492363440,0.36094129,106090.0,106070.0,1.5]
[1737492363632,0.188527,106080.0,106070.0,1.5]
[1737492363833,0.54466829,106090.0,106060.0,0.81225258]
[1737492364140,0.188544,106070.0,106060.0,0.81225258]
[1737492364645,0.188537,106080.0,106060.0,0.81225258]
[1737492364831,0.188537,106080.0,106070.0,0.188544]
[1737492365027,0.188544,106070.0,106060.0,0.81225658]
[1737492365228,0.188544,106070.0,106060.0,0.68410029]
[1737492365434,0.188544,106070.0,106060.0,0.81225658]
[1737492365638,0.49754129,106090.0,106060.0,0.68410029]
[1737492365834,0.49754129,106090.0,106060.0,0.81225658]
[1737492365835,0.188535,106080.0,106060.0,0.81225658]
[1737492366039,0.188535,106080.0,106070.0,0.31670029]
[1737492367236,0.188535,106080.0,106070.0,0.188544]
[1737492368337,0.188535,106080.0,106060.0,0.81225358]
[1737492368839,0.188544,106070.0,106060.0,0.70887021]
[1737492369045,0.188544,106070.0,106060.0,0.54949729]
[1737492369545,0.188544,106070.0,106060.0,0.18869729]
[1737492369741,0.188532,106080.0,106070.0,0.188544]
[1737492370546,0.49754129,106090.0,106070.0,0.31670029]
[1737492370744,0.68606229,106090.0,106080.0,0.12815629]
[1737492371048,0.25786229,106090.0,106080.0,0.31668329]
[1737492371743,0.00014129,106090.0,106080.0,0.67748329]
[1737492372055,0.00014129,106090.0,106080.0,0.77175621]
[1737492372750,0.21045562,106100.0,106080.0,0.68165547]
[1737492372942,0.21045562,106100.0,106090.0,0.31666529]
[1737492373145,0.21045562,106100.0,106090.0,0.67746529]
[1737492373349,0.16568343,106120.0,106110.0,0.188473]
[1737492373551,0.35413843,106120.0,106110.0,0.31662929]
[1737492373849,0.35413843,106120.0,106110.0,0.188473]
[1737492374044,0.16568343,106120.0,106100.0,0.62999758]
[1737492374246,0.549273,106110.0,106100.0,0.00014129]
[1737492374637,0.616473,106110.0,106100.0,0.00014129]
[1737492375442,0.616473,106110.0,106100.0,0.12829758]
[1737492375643,0.16568343,106120.0,106100.0,0.77183484]
[1737492375849,0.188473,106110.0,106100.0,0.09438755]
[1737492376050,0.188473,106110.0,106100.0,0.00014129]
[1737492376245,0.549273,106110.0,106100.0,0.00014129]
[1737492376455,0.618973,106110.0,106100.0,0.00014129]
[1737492377852,0.258173,106110.0,106100.0,0.31678858]
[1737492378047,0.188473,106110.0,106100.0,0.31678858]
[1737492378243,0.188473,106110.0,106100.0,0.18863229]
[1737492378444,0.255764,106120.0,106110.0,0.188473]
[1737492378646,0.188464,106120.0,106110.0,0.31662929]
[1737492379047,0.188464,106120.0,106110.0,0.188473]
[1737492380255,0.19000042,106130.0,106120.0,0.188456]
[1737492380460,0.00155542,106130.0,106120.0,0.67741229]
[1737492380654,0.63684133,106150.0,106120.0,0.80556858]
[1737492380954,0.63684133,106150.0,106130.0,0.67738029]
[1737492381156,0.63684133,106150.0,106140.0,0.18842]
[1737492381557,0.49224133,106150.0,106140.0,0.18842]
[1737492382151,0.30383433,106150.0,106140.0,0.77158703]
[1737492382354,0.30383433,106150.0,106140.0,0.91078703]
[1737492383461,0.49223633,106150.0,106140.0,0.91078703]
[1737492383657,0.18842,106140.0,106130.0,2.17809058]
[1737492383856,0.18842,106140.0,106130.0,1.50014129]
[1737492384161,0.18842,106140.0,106130.0,0.41094632]
[1737492384459,0.18842,106140.0,106130.0,0.36094129]
[1737492384652,0.25982,106140.0,106130.0,0.00014129]
[1737492385668,0.18842,106140.0,106130.0,0.00014129]
[1737492386359,0.33442,106140.0,106130.0,0.00014129]
[1737492386663,0.69522,106140.0,106130.0,0.00014129]
[1737492387967,0.26332,106140.0,106130.0,0.31673558]
[1737492388171,0.75227629,106140.0,106130.0,0.00014129]
[1737492388573,0.62412,106140.0,106130.0,0.00014129]
[1737492389458,0.62412,106140.0,106130.0,0.18857929]
[1737492389658,0.62061,106150.0,106130.0,0.31673558]
[1737492389868,0.25981,106150.0,106140.0,0.18842]
[1737492390669,0.25981,106150.0,106140.0,1.68842]
[1737492390964,0.69467992,106160.0,106140.0,1.62815629]
[1737492391265,0.69467992,106160.0,106140.0,1.91078003]
[1737492391462,0.69467992,106160.0,106140.0,1.78262374]
[1737492391669,0.69467992,106160.0,106150.0,0.188402]
[1737492391864,9.192e-05,106160.0,106150.0,0.67735829]
[1737492392172,0.26214308,106170.0,106160.0,0.188385]
[1737492392173,0.00097308,106170.0,106160.0,0.188385]
[1737492392364,0.00097308,106170.0,106160.0,0.67734129]
[1737492392664,0.18934008,106170.0,106150.0,0.25879]
[1737492392965,0.188385,106160.0,106140.0,2.555934]
[1737492393273,0.188385,106160.0,106140.0,2.77842458]
[1737492394276,0.188402,106150.0,106140.0,0.50686129]
[1737492394766,0.188402,106150.0,106140.0,0.00014129]
[1737492394958,0.549202,106150.0,106140.0,0.00014129]
[1737492403771,0.67735829,106150.0,106140.0,0.00014129]
[1737492408175,0.55673551,106150.0,106140.0,0.00014129]
[1737492409977,0.69488641,106150.0,106140.0,1.50014129]
[1737492410571,0.69488641,106150.0,106140.0,0.00014129]
[1737492410968,0.14568441,106150.0,106140.0,0.31671758]
[1737492411276,0.1381509,106150.0,106140.0,1.91092832]
[1737492411676,0.1381509,106150.0,106140.0,1.81671758]
[1737492411876,0.3265529,106150.0,106140.0,1.81671758]
[1737492412070,0.1381509,106150.0,106140.0,1.81671758]
[1737492412267,0.1381509,106150.0,106140.0,1.96281758]
[1737492412467,0.1381509,106150.0,106140.0,2.32361758]
[1737492412669,0.1381509,106150.0,106140.0,2.41782832]
[1737492413269,0.1381509,106150.0,106140.0,2.32361758]
[1737492414271,0.188402,106150.0,106140.0,2.32361758]
[1737492414877,0.188402,106150.0,106140.0,0.83116622]
[1737492415178,0.549202,106150.0,106140.0,0.00014129]
[1737492415378,0.67735829,106150.0,106140.0,0.00014129]
[1737492415677,0.188438,106130.0,106120.0,0.39320674]
[1737492415881,0.188456,106120.0,106110.0,0.28099213]
[1737492416174,0.188473,106110.0,106100.0,0.33726815]
[1737492416380,0.82112929,106110.0,106100.0,0.33726815]
[1737492416878,0.188491,106100.0,106090.0,0.00014129]
[1737492417066,0.48895629,106100.0,106070.0,0.3168833]
[1737492417264,0.549327,106080.0,106070.0,0.3168833]
[1737492417974,0.54940459,106080.0,106070.0,0.3168833]
[1737492418776,0.54940459,106080.0,106060.0,2.00819559]
[1737492418777,0.188545,106070.0,106060.0,2.00819559]
[1737492419477,0.188545,106070.0,106060.0,0.50819559]
[1737492420177,0.188545,106070.0,106060.0,0.63635188]
[1737492420384,7.759e-05,106080.0,106060.0,0.99715188]
[1737492420577,0.18860459,106080.0,106070.0,1.81670129]
[1737492420879,0.18860459,106080.0,106070.0,1.5]
[1737492421080,0.18860459,106080.0,106070.0,1.688545]
[1737492421479,0.00014129,106090.0,106070.0,2.2113855]
[1737492421688,0.00141455,106100.0,106090.0,0.188509]
[1737492421881,0.00141455,106100.0,106090.0,0.67746529]
[1737492422075,0.3265959,106130.0,106110.0,0.188464]
[1737492422381,0.188438,106130.0,106120.0,0.31661229]
[1737492422585,0.188456,106120.0,106110.0,0.3608]
[1737492422782,0.55077825,106140.0,106120.0,0.188455]
[1737492422975,0.55077825,106140.0,106130.0,0.188438]
[1737492423283,0.55077825,106140.0,106130.0,0.31659429]
[1737492423484,0.55077825,106140.0,106120.0,0.67741029]
[1737492423782,0.188438,106130.0,106120.0,0.67741029]
[1737492424373,0.188456,106120.0,106110.0,0.00014129]
[1737492424570,0.549256,106120.0,106110.0,0.00014129]
[1737492424773,0.188456,106120.0,106110.0,1.50014129]
[1737492425478,0.188456,106120.0,106110.0,0.00014129]
[1737492425880,0.188456,106120.0,106110.0,0.31677058]
[1737492426082,0.48396325,106140.0,106110.0,0.48909758]
[1737492426083,0.36235525,106140.0,106110.0,0.48909758]
[1737492426279,0.00155525,106140.0,106120.0,0.48895629]
[1737492426584,0.00155525,106140.0,106120.0,0.549253]
[1737492426781,0.188438,106130.0,106120.0,0.549253]
[1737492427876,0.00155525,106140.0,106130.0,0.188438]
[1737492428083,0.18997525,106140.0,106130.0,0.67739429]
[1737492428475,0.00155525,106140.0,106130.0,0.77162279]
[1737492428679,0.00014129,106140.0,106130.0,0.91382279]
[1737492429988,0.00097319,106160.0,106150.0,0.188402]
[1737492430293,0.00097319,106160.0,106150.0,0.67735829]
[1737492430485,0.188421,106150.0,106140.0,0.549232]
[1737492430786,0.3608,106150.0,106120.0,1.06645629]
[1737492430980,0.188474,106120.0,106110.0,0.549289]
[1737492431382,0.188474,106120.0,106110.0,0.67744529]
[1737492431583,0.188473,106130.0,106120.0,0.188473]
[1737492431778,0.188475,106120.0,106110.0,0.67744229]
[1737492433096,0.40791,106140.0,106110.0,0.48895629]
[1737492433286,0.188467,106130.0,106120.0,0.31662729]
[1737492433486,0.549267,106130.0,106120.0,0.31662729]
[1737492433893,0.188467,106130.0,106120.0,1.688471]
[1737492434093,0.188467,106130.0,106120.0,1.5]
[1737492434391,0.188475,106120.0,106110.0,0.67744129]
[1737492434593,0.188475,106120.0,106110.0,0.31664129]
[1737492434785,0.188475,106120.0,106110.0,2.17744129]
[1737492435486,0.51857749,106140.0,106110.0,1.98895629]
[1737492435687,0.188463,106130.0,106120.0,0.31662229]
[1737492436395,0.188463,106130.0,106120.0,0.41085079]
[1737492436589,0.188463,106130.0,106120.0,0.188466]
[1737492437700,0.47146749,106140.0,106120.0,0.12815629]
[1737492438001,0.65990949,106140.0,106130.0,0.31661329]
[1737492438199,0.29910949,106140.0,106130.0,0.31661329]
[1737492438497,0.29910949,106140.0,106130.0,0.188457]
[1737492438692,0.188457,106130.0,106120.0,0.31676258]
[1737492439390,0.188457,106130.0,106120.0,0.00014129]
[1737492439588,0.549257,106130.0,106120.0,0.00014129]
[1737492439797,0.621957,106130.0,106120.0,0.00014129]
[1737492440189,0.56165629,106130.0,106090.0,0.57616686]
[1737492440385,0.56165629,106130.0,106090.0,0.50826686]
[1737492440386,0.18851,106100.0,106090.0,0.50826686]
[1737492440692,0.047132,106090.0,106050.0,1.20581337]
[1737492440888,0.188581,106060.0,106050.0,0.33829337]
[1737492441087,0.549381,106060.0,106050.0,0.33829337]
[1737492441899,0.54946457,106060.0,106050.0,0.33829337]
[1737492442696,0.54946457,106060.0,106050.0,0.52689237]
[1737492443791,0.54946457,106060.0,106050.0,0.33829337]
[1737492443987,0.36088357,106060.0,106050.0,0.31816972]
[1737492444193,8.357e-05,106060.0,106050.0,0.77326041]
[1737492444994,8.357e-05,106060.0,106050.0,0.84316041]
[1737492445195,5.7e-07,106060.0,106050.0,0.84316041]
[1737492445499,0.24904254,106080.0,106070.0,0.188563]
[1737492445706,0.24904254,106080.0,106070.0,1.03831929]
[1737492446095,0.24904254,106080.0,106070.0,2.63259221]
[1737492447602,0.18994463,106090.0,106080.0,0.188545]
[1737492447804,0.18994463,106090.0,106080.0,0.31670129]
[1737492448594,0.18994463,106090.0,106080.0,0.188545]
[1737492448799,0.00141463,106090.0,106080.0,0.77176532]
[1737492449599,0.00141463,106090.0,106080.0,0.89992161]
[1737492449799,0.188507,106110.0,106100.0,0.18851]
[1737492450006,0.188507,106110.0,106100.0,0.31666629]
[1737492450306,0.188507,106110.0,106100.0,0.18851]
[1737492450904,0.188507,106110.0,106100.0,0.31666629]
[1737492451213,0.188507,106110.0,106100.0,0.18851]
[1737492451704,0.65994549,106120.0,106110.0,0.188492]
[1737492451907,0.11066749,106120.0,106110.0,0.67744829]
[1737492452096,0.11066749,106120.0,106110.0,2.27168567]
[1737492452492,0.11066749,106120.0,106110.0,2.34348567]
[1737492452707,0.30583903,106130.0,106120.0,0.188474]
[1737492452893,0.30583903,106130.0,106120.0,0.67743029]
[1737492453301,0.30583903,106130.0,106120.0,0.77165879]
[1737492453798,0.30583903,106130.0,106120.0,0.84315879]
[1737492455102,0.07127331,106150.0,106120.0,0.78284108]
[1737492455303,0.07127331,106150.0,106140.0,0.67739529]
[1737492456006,0.18939431,106150.0,106140.0,0.67739529]
[1737492456806,0.18939432,106150.0,106140.0,0.67739529]
[1737492457005,0.18939432,106150.0,106140.0,0.549239]
[1737492457204,0.18939432,106150.0,106140.0,0.188439]
[1737492457412,0.18939432,106150.0,106140.0,0.31659529]
[1737492457813,0.55019432,106150.0,106140.0,0.31659529]
[1737492458000,0.55019432,106150.0,106140.0,0.188439]
[1737492458205,0.18939432,106150.0,106140.0,0.188439]
[1737492458707,0.55019432,106150.0,106140.0,0.188439]
[1737492459608,0.188439,106140.0,106130.0,0.18859329]
[1737492460603,0.55019732,106150.0,106140.0,0.188439]
[1737492462212,0.55019732,106150.0,106130.0,0.12829758]
[1737492462423,0.55019732,106150.0,106130.0,0.31674158]
[1737492463613,0.188439,106140.0,106130.0,0.31674158]
[1737492464818,0.55020532,106150.0,106140.0,0.188439]
[1737492465208,0.188439,106140.0,106130.0,0.31674558]
[1737492465514,0.188439,106140.0,106130.0,0.18858929]
[1737492466510,0.188439,106140.0,106130.0,0.31674558]
[1737492467015,0.55020532,106150.0,106140.0,0.188439]
[1737492467709,0.00097332,106150.0,106130.0,0.48909758]
[1737492467911,0.00097332,106150.0,106140.0,0.31659529]
[1737492468425,0.18939432,106150.0,106140.0,0.188439]
[1737492468809,0.55019432,106150.0,106140.0,0.188439]
[1737492469006,0.188439,106140.0,106130.0,0.00014129]
[1737492469314,0.188474,106120.0,106110.0,0.50668]
[1737492469515,0.188474,106120.0,106100.0,0.188504]
[1737492469516,0.89687429,106120.0,106090.0,2.0494059]
[1737492469817,0.18851,106100.0,106090.0,0.5494059]
[1737492470420,0.18851,106100.0,106090.0,0.55735092]
[1737492470616,0.18851,106100.0,106090.0,0.36882992]
[1737492470805,0.75036629,106100.0,106090.0,8.49e-05]
[1737492471007,0.188528,106090.0,106080.0,0.28050819]
[1737492471212,0.188546,106080.0,106070.0,0.33687894]
[1737492471605,0.549346,106080.0,106070.0,0.33687894]
[1737492472007,0.54944059,106080.0,106070.0,0.33687894]
[1737492472215,0.67759688,106080.0,106070.0,0.33687894]
[1737492472618,0.54944059,106080.0,106070.0,0.33687894]
[1737492474011,0.54944059,106080.0,106060.0,0.18872029]
[1737492474919,0.54944059,106080.0,106070.0,0.188563]
[1737492477618,0.63230729,106080.0,106070.0,0.188563]
[1737492477820,0.63230729,106080.0,106070.0,1.688563]
[1737492478917,0.63230729,106080.0,106060.0,0.25821629]
[1737492479420,0.63230729,106080.0,106060.0,1.75821629]
[1737492479723,0.63230729,106080.0,106070.0,0.188563]
[1737492479926,0.63230729,106080.0,106060.0,1.75821629]
[1737492480522,0.63230729,106080.0,106070.0,0.188563]
[1737492480823,0.63230729,106080.0,106060.0,1.64094129]
[1737492481023,0.63230729,106080.0,106060.0,1.82951529]
[1737492481318,0.67751929,106070.0,106060.0,0.00014129]
[1737492481520,0.188599,106050.0,106040.0,0.19002858]
[1737492481726,0.54949359,106050.0,106040.0,1.50141458]
[1737492482219,0.54949359,106050.0,106040.0,1.82602776]
[1737492482411,0.18869359,106050.0,106040.0,1.82602776]
[1737492482611,0.18869359,106050.0,106040.0,1.69787147]
[1737492483120,0.67764988,106050.0,106040.0,0.00141458]
[1737492484019,0.54949359,106050.0,106040.0,0.00141458]
[1737492484217,0.36089459,106050.0,106040.0,0.19003158]
[1737492484417,0.36089459,106050.0,106040.0,0.19103158]
[1737492485020,0.36089459,106050.0,106040.0,0.31918787]
[1737492485225,0.36089459,106050.0,106040.0,0.31818787]
[1737492485729,0.54949359,106050.0,106040.0,0.31818787]
[1737492486224,0.36089459,106050.0,106040.0,0.31818787]
[1737492486924,0.36089459,106050.0,106040.0,0.31677329]
[1737492487518,9.459e-05,106050.0,106040.0,0.31677329]
[1737492488017,9.459e-05,106050.0,106040.0,0.67757329]
[1737492490223,9.459e-05,106050.0,106040.0,2.27187287]
[1737492490931,0.00014129,106060.0,106040.0,2.21141216]
[1737492491126,0.00014129,106060.0,106050.0,0.67755529]
[1737492491429,0.00014129,106060.0,106050.0,0.689499]
[1737492491430,0.18872229,106060.0,106050.0,0.689499]
[1737492492332,0.18872229,106060.0,106050.0,0.619399]
[1737492492528,0.48909758,106060.0,106040.0,1.50836009]
[1737492492724,0.188599,106050.0,106040.0,0.00788009]
[1737492493028,0.188617,106040.0,106030.0,0.1888401]
[1737492493332,0.549417,106040.0,106030.0,0.1888401]
[1737492495930,0.549417,106040.0,106030.0,0.19690682]
[1737492497026,0.3608,106040.0,106030.0,0.19690682]
[1737492497437,0.549404,106050.0,106040.0,0.188617]
[1737492498838,0.188617,106040.0,106030.0,0.0002081]
[1737492499141,0.67757329,106040.0,106030.0,0.0002081]
[1737492499329,0.047159,106030.0,106000.0,0.1]
[1737492499526,0.91027,106010.0,106000.0,0.288688]
[1737492499725,0.54947,106010.0,106000.0,0.288688]
[1737492500133,0.3608,106020.0,106010.0,0.18867]
[1737492500329,6.681e-05,106020.0,106010.0,0.43229229]
[1737492500532,6.681e-05,106020.0,106010.0,0.79309229]
[1737492500736,0.549419,106040.0,106010.0,0.70786759]
[1737492501035,0.3608,106020.0,106010.0,0.0683]
[1737492501230,0.549452,106020.0,106010.0,0.0683]
[1737492501536,0.549452,106020.0,106000.0,0.42931829]
[1737492501739,0.622152,106020.0,106000.0,0.42931829]
[1737492502036,0.62229329,106020.0,106000.0,0.42931829]
[1737492502233,0.43364129,106020.0,106000.0,0.42931829]
[1737492502438,0.18867,106010.0,106000.0,0.28881829]
[1737492502631,0.0828667,106010.0,106000.0,0.28881829]
[1737492502829,0.0828667,106010.0,106000.0,0.41697458]
[1737492503031,0.0828667,106010.0,106000.0,0.62877458]
[1737492503440,0.0828667,106010.0,106000.0,1.08390975]
[1737492503636,0.13851634,106020.0,106010.0,0.18867]
[1737492503829,0.13851634,106020.0,106010.0,0.31682629]
[1737492504034,0.13851634,106020.0,106010.0,0.67762629]
[1737492504230,0.13851634,106020.0,106010.0,0.12815629]
[1737492504440,0.18867,106010.0,106000.0,0.42902729]
[1737492504634,0.54947,106010.0,106000.0,0.16844129]
[1737492504837,0.54947,106010.0,106000.0,0.10014129]
[1737492504838,0.67762629,106010.0,106000.0,0.10014129]
[1737492505138,0.54947,106010.0,106000.0,0.10014129]
[1737492505339,0.61817,106010.0,106000.0,0.10014129]
[1737492505839,0.61817,106010.0,106000.0,0.28882929]
[1737492506039,0.54947,106010.0,106000.0,0.28882929]
[1737492506230,0.3608,106010.0,106000.0,0.28882929]
[1737492506433,0.3608,106010.0,106000.0,0.41698558]
[1737492506941,0.54959929,106020.0,106010.0,0.18867]
[1737492507236,0.54959929,106020.0,106010.0,0.67762629]
[1737492507237,0.00014129,106020.0,106010.0,0.67762629]
[1737492507452,0.00014129,106020.0,106010.0,0.39002629]
[1737492507644,0.00014129,106020.0,106010.0,0.46292629]
[1737492508335,0.00014129,106020.0,106010.0,0.33477]
[1737492509344,0.00014129,106020.0,106010.0,0.46292629]
[1737492509646,0.00014129,106020.0,106010.0,0.33477]
[1737492510344,0.00014129,106020.0,106010.0,0.46292629]
[1737492510541,0.00014129,106020.0,106010.0,0.53682629]
[1737492510841,0.00014129,106020.0,106010.0,2.49195256]
[1737492511145,0.00014129,106020.0,106010.0,2.13115256]
[1737492512743,0.00014129,106020.0,106010.0,2.03682629]
[1737492512945,0.18879329,106020.0,106010.0,2.03682629]
[1737492513144,0.00014129,106020.0,106010.0,2.04516326]
[1737492513448,0.00014129,106020.0,106010.0,2.13948953]
[1737492514145,0.00014129,106020.0,106010.0,2.50028953]
[1737492514340,0.00014129,106020.0,106010.0,1.00028953]
[1737492514742,0.00014129,106020.0,106010.0,0.63948953]
[1737492516141,0.00014129,106020.0,106010.0,1.00028953]
[1737492516445,0.11080394,106040.0,106030.0,0.188634]
[1737492516633,0.24917899,106040.0,106030.0,0.31679029]
[1737492516839,0.43779599,106040.0,106030.0,0.188634]
[1737492517035,0.43779599,106040.0,106030.0,0.549434]
[1737492517242,0.24917899,106040.0,106030.0,0.67759029]
[1737492517443,0.24917899,106040.0,106030.0,0.77191656]
[1737492517636,0.43779599,106040.0,106030.0,0.28296027]
[1737492517849,0.79859599,106040.0,106030.0,0.188634]
[1737492518240,0.86889599,106040.0,106030.0,0.188634]
[1737492519835,0.188634,106030.0,106020.0,0.18878729]
[1737492520345,0.86889899,106040.0,106030.0,0.188634]
[1737492520741,0.73052394,106040.0,106030.0,0.188634]
[1737492520943,0.18110394,106040.0,106030.0,0.188634]
[1737492521244,0.13851634,106050.0,106030.0,0.68200495]
[1737492521542,0.13851634,106050.0,106040.0,1.02602958]
[1737492521745,0.13851634,106050.0,106040.0,0.89787329]
[1737492522143,0.13851634,106050.0,106040.0,0.99218177]
[1737492523051,0.13851634,106050.0,106040.0,0.769717]
[1737492523345,0.13851634,106050.0,106040.0,0.89787329]
[1737492523544,0.13851634,106050.0,106040.0,1.12032916]
[1737492524143,0.13851634,106050.0,106040.0,0.99217287]
[1737492524845,0.00014129,106050.0,106040.0,1.12032916]
[1737492525047,0.73962511,106080.0,106070.0,0.188563]
[1737492525048,0.92817311,106080.0,106070.0,0.188563]
[1737492525349,0.92817311,106080.0,106070.0,0.31671929]
[1737492525742,0.30442511,106080.0,106070.0,0.67751929]
[1737492525941,0.30442511,106080.0,106070.0,0.82771929]
[1737492526142,0.30442511,106080.0,106070.0,2.32771929]
[1737492526345,0.30442511,106080.0,106070.0,2.42199221]
[1737492526749,0.30442511,106080.0,106070.0,2.49199221]
[1737492527846,0.00111514,106090.0,106080.0,0.188546]
[1737492528153,0.00111514,106090.0,106080.0,0.31670229]
[1737492528338,0.00111514,106090.0,106080.0,0.80565858]
[1737492528541,0.19372507,106100.0,106080.0,0.71137661]
[1737492528741,0.19372507,106100.0,106090.0,0.67748429]
[1737492529050,0.38223507,106100.0,106090.0,0.31668429]
[1737492529354,0.18851,106100.0,106090.0,0.31668429]
[1737492529542,0.3608,106100.0,106070.0,1.6502]
[1737492529743,0.549344,106090.0,106080.0,0.31683958]
[1737492530052,0.188544,106090.0,106080.0,0.31683958]
[1737492530248,0.188521,106100.0,106090.0,0.188525]
[1737492530445,0.549321,106100.0,106090.0,0.31668129]
[1737492530652,0.75833713,106110.0,106100.0,0.18851]
[1737492530846,0.32703713,106110.0,106100.0,0.31666629]
[1737492531052,0.13853613,106110.0,106100.0,0.31666629]
[1737492532950,0.13853613,106110.0,106100.0,0.67746629]
[1737492533250,0.19372507,106130.0,106120.0,0.188475]
[1737492533455,0.45044907,106150.0,106140.0,0.188439]
[1737492533953,0.81124907,106150.0,106140.0,0.188439]
[1737492534151,0.74294907,106150.0,106140.0,0.31659529]
[1737492534448,0.19372507,106150.0,106140.0,2.24589529]
[1737492535658,0.19372507,106150.0,106140.0,2.34010603]
[1737492536156,0.19372507,106150.0,106140.0,2.40790603]
[1737492537251,0.188404,106160.0,106150.0,0.188421]
[1737492537465,0.188404,106160.0,106150.0,0.67737729]
[1737492537954,0.1898057,106170.0,106160.0,0.188404]
[1737492538154,0.1898057,106170.0,106160.0,0.31656029]
[1737492538358,0.5506057,106170.0,106160.0,0.31656029]
[1737492539662,0.0014137,106170.0,106160.0,0.31656029]
[1737492539951,0.0014137,106170.0,106160.0,0.41075329]
[1737492540159,0.3622137,106170.0,106150.0,0.54935129]
[1737492540358,0.188404,106160.0,106150.0,0.54935129]
[1737492540754,0.188404,106160.0,106150.0,0.67750758]
[1737492540952,0.5506067,106170.0,106160.0,0.188404]
[1737492541153,0.5506067,106170.0,106160.0,0.31656029]
[1737492541349,0.5506067,106170.0,106160.0,0.188404]
[1737492541656,0.188404,106160.0,106150.0,0.00014129]
[1737492541849,0.549204,106160.0,106150.0,0.00014129]
[1737492542045,0.692704,106160.0,106150.0,0.00014129]
[1737492543251,0.188421,106150.0,106140.0,8.243e-05]
[1737492543453,0.619321,106150.0,106140.0,8.243e-05]
[1737492544553,0.74747729,106150.0,106140.0,8.243e-05]
[1737492545059,0.188439,106140.0,106130.0,0.00014129]
[1737492545258,0.188439,106140.0,106120.0,0.188466]
[1737492545259,0.188457,106130.0,106120.0,0.188466]
[1737492545563,0.188492,106110.0,106100.0,0.18991839]
[1737492545763,0.18851,106100.0,106090.0,0.695206]
[1737492546154,0.18851,106100.0,106090.0,1.056006]
[1737492546456,0.54951872,106110.0,106100.0,0.18851]
[1737492547059,0.36102372,106110.0,106090.0,0.695199]
[1737492547261,0.18851,106100.0,106090.0,0.695199]
[1737492548356,0.54931,106100.0,106090.0,0.50668]
[1737492548554,0.188528,106090.0,106080.0,0.18868429]
[1737492548747,0.549328,106090.0,106080.0,0.18868429]
[1737492550058,0.549328,106090.0,106080.0,0.31684058]
[1737492550752,0.3608,106090.0,106080.0,0.31684058]
[1737492551449,0.54932,106100.0,106080.0,0.12829758]
[1737492551650,0.54952272,106110.0,106090.0,0.188514]
[1737492552056,0.54952272,106110.0,106080.0,0.53623358]
[1737492552366,0.54952272,106110.0,106090.0,1.688515]
[1737492552555,0.54931,106100.0,106090.0,1.5]
[1737492553959,0.188528,106090.0,106080.0,0.18868029]
[1737492554460,0.3608,106100.0,106080.0,1.50014129]
[1737492554658,0.549318,106100.0,106090.0,0.188528]
[1737492555461,0.3608,106100.0,106080.0,1.50014129]
[1737492555667,0.549324,106100.0,106080.0,1.50014129]